bitfinex/quotes_BTCUSD_20260307
["timestamp","ask_amount","ask_price","bid_price","bid_amount"]
[1772891187010,0.06427376,67927.0,67917.0,0.07361927]
[1772891190597,0.06427376,67927.0,67917.0,0.07344859]
[1772891192237,0.00022001,67928.0,67917.0,0.09702909]
[1772891192395,0.00022001,67928.0,67918.0,0.0235805]
[1772891193477,0.00022001,67928.0,67918.0,0.02370109]
[1772891194070,0.00022001,67928.0,67920.0,0.02354595]
[1772891195071,0.00022001,67927.0,67920.0,0.02354595]
[1772891196441,0.00022001,67927.0,67921.0,0.09712599]
[1772891197835,0.00022001,67927.0,67921.0,0.07361493]
[1772891198040,0.00022001,67927.0,67922.0,0.02347613]
[1772891198438,0.00022001,67927.0,67924.0,0.02347613]
[1772891199566,0.00045,67933.0,67924.0,0.02347613]
[1772891200330,0.00045,67933.0,67925.0,0.07361059]
[1772891200664,0.00045,67933.0,67925.0,0.09688712]
[1772891201612,0.00045,67933.0,67926.0,0.02344719]
[1772891202949,0.00045,67933.0,67927.0,0.07360843]
[1772891203844,0.00045,67933.0,67927.0,0.07343775]
[1772891206760,0.00015,67933.0,67927.0,0.07343775]
[1772891209706,0.00015,67933.0,67923.0,0.07361276]
[1772891210708,0.06505192,67933.0,67923.0,0.07361276]
[1772891219083,0.00037001,67933.0,67923.0,0.09674473]
[1772891219285,0.00037001,67933.0,67923.0,0.07361276]
[1772891219503,0.00037001,67933.0,67924.0,0.02313197]
[1772891220362,0.00037001,67933.0,67925.0,0.07361059]
[1772891220560,0.00037001,67933.0,67926.0,0.0230968]
[1772891222596,0.00037001,67933.0,67927.0,0.07360843]
[1772891225785,0.00037001,67933.0,67923.0,0.07361276]
[1772891226394,0.00037001,67933.0,67923.0,0.10680947]
[1772891229655,0.06913626,67932.0,67922.0,0.00148]
[1772891229823,0.06913626,67932.0,67923.0,0.0002]
[1772891230024,0.06913626,67932.0,67922.0,0.07361345]
[1772891230225,0.07360409,67931.0,67920.0,0.07361385]
[1772891230829,0.14274035,67931.0,67920.0,0.07361385]
[1772891233106,0.07360409,67931.0,67920.0,0.07361385]
[1772891233688,0.00148,67930.0,67920.0,0.07361385]
[1772891234693,0.07508529,67930.0,67920.0,0.07361385]
[1772891237428,0.07508529,67930.0,67920.0,0.07381385]
[1772891238652,0.07508529,67930.0,67920.0,0.0002]
[1772891238822,0.07508529,67930.0,67913.0,0.0002]
[1772891238823,0.06913626,67929.0,67913.0,0.0002]
[1772891239002,0.06925678,67929.0,67913.0,0.0002]
[1772891240763,0.06913626,67927.0,67913.0,0.0002]
[1772891242796,0.07360951,67926.0,67913.0,0.0002]
[1772891242943,0.14274577,67926.0,67913.0,0.0002]
[1772891247527,0.06913626,67925.0,67913.0,0.0002]
[1772891247718,0.07360951,67926.0,67913.0,0.0002]
[1772891247719,0.07061626,67924.0,67913.0,0.0002]
[1772891248574,0.07394787,67929.0,67913.0,0.0002]
[1772891248575,0.00034053,67929.0,67915.0,0.07078596]
[1772891248745,0.00034053,67929.0,67918.0,0.03273187]
[1772891248945,0.07508303,67932.0,67921.0,0.03273187]
[1772891249143,0.07508303,67932.0,67921.0,0.03285239]
[1772891249326,0.07360303,67932.0,67921.0,0.03285239]
[1772891249492,0.07508303,67932.0,67921.0,0.03285239]
[1772891253463,0.07508303,67932.0,67923.0,0.03278638]
[1772891253845,0.07530304,67932.0,67923.0,0.03278638]
[1772891256143,0.07476321,67932.0,67924.0,0.10628374]
[1772891257901,0.07476321,67932.0,67924.0,0.07361168]
[1772891258101,0.07476321,67932.0,67927.0,0.03265836]
[1772891258102,0.00022001,67932.0,67927.0,0.03265836]
[1772891258602,0.07382303,67932.0,67927.0,0.03265836]
[1772891259134,0.00022001,67932.0,67927.0,0.03265836]
[1772891260867,0.00022001,67932.0,67927.0,0.07360735]
[1772891261071,0.07382317,67932.0,67928.0,0.03313692]
[1772891264852,0.00022001,67932.0,67928.0,0.03313692]
[1772891265430,0.07382336,67932.0,67926.0,0.07360739]
[1772891266426,0.07382336,67932.0,67925.0,0.04705329]
[1772891266842,0.00022001,67932.0,67925.0,0.04705329]
[1772891267073,0.07382309,67932.0,67925.0,0.04705329]
[1772891268305,0.07382309,67932.0,67924.0,0.07360951]
[1772891268538,0.07382309,67932.0,67923.0,0.07361208]
[1772891268914,0.07382309,67932.0,67923.0,0.1221507]
[1772891269557,0.07382309,67932.0,67923.0,0.07361208]
[1772891269685,0.07382309,67932.0,67924.0,0.04853862]
[1772891271792,0.07382309,67932.0,67925.0,0.07361059]
[1772891271941,0.07382309,67932.0,67925.0,0.12209864]
[1772891272345,0.07382309,67932.0,67925.0,0.07361059]
[1772891272549,0.07382309,67932.0,67926.0,0.04848805]
[1772891273557,0.00022001,67932.0,67926.0,0.04848805]
[1772891273762,0.07529934,67936.0,67928.0,0.07360734]
[1772891273937,0.07529934,67936.0,67929.0,0.04846293]
[1772891274151,0.07381934,67936.0,67929.0,0.04846293]
[1772891275855,0.07381934,67936.0,67930.0,0.07360518]
[1772891279297,0.00022001,67936.0,67930.0,0.07360518]
[1772891280559,0.07381869,67936.0,67930.0,0.07360518]
[1772891282507,0.00022001,67936.0,67927.0,0.04836454]
[1772891284243,0.00022001,67936.0,67927.0,0.07175143]
[1772891284446,0.00022001,67936.0,67929.0,0.07360626]
[1772891284652,0.00022001,67936.0,67930.0,0.04833998]
[1772891284851,0.00022001,67939.0,67930.0,0.04833998]
[1772891285875,0.0688345,67937.0,67921.0,0.07393517]
[1772891286044,0.0688345,67935.0,67921.0,0.07393517]
[1772891286743,0.07360084,67934.0,67921.0,0.07393517]
[1772891288417,0.14243534,67934.0,67921.0,0.07393517]
[1772891289365,0.07360084,67934.0,67921.0,0.07393517]
[1772891289565,0.0688345,67933.0,67921.0,0.07541517]
[1772891290336,0.0688345,67933.0,67921.0,0.07393517]
[1772891290469,0.0688345,67933.0,67921.0,0.07541517]
[1772891291026,0.07360301,67932.0,67921.0,0.07541517]
[1772891291943,0.07360301,67932.0,67921.0,0.07393517]
[1772891292081,0.07360301,67932.0,67921.0,0.07541517]
[1772891292286,0.07360301,67932.0,67921.0,0.07393517]
[1772891292590,0.07360301,67932.0,67921.0,0.07541517]
[1772891293337,0.07360301,67932.0,67921.0,0.07393517]
[1772891293544,0.07360301,67932.0,67921.0,0.07541517]
[1772891295383,0.07360301,67932.0,67921.0,0.07393517]
[1772891295547,0.07360301,67932.0,67921.0,0.07541517]
[1772891295957,0.07360301,67932.0,67921.0,0.00032052]
[1772891297039,0.07360301,67932.0,67918.0,0.0002]
[1772891297248,0.0688345,67931.0,67913.0,0.07382318]
[1772891297451,0.0688345,67929.0,67913.0,0.0002]
[1772891299416,0.0688345,67927.0,67913.0,0.0002]
[1772891300839,0.07360734,67928.0,67907.0,0.0002]
[1772891301024,0.0688345,67927.0,67907.0,0.0002]
[1772891301233,0.07360951,67926.0,67907.0,0.0002]
[1772891301407,0.0688345,67925.0,67907.0,0.0002]
[1772891301608,0.0688345,67923.0,67907.0,0.0002]
[1772891302642,0.00148,67924.0,67904.0,1e-08]
[1772891302643,0.0688345,67919.0,67904.0,1e-08]
[1772891302868,0.0688345,67917.0,67904.0,1e-08]
[1772891303018,0.14,67917.0,67904.0,1e-08]
[1772891303220,0.07362143,67915.0,67904.0,1e-08]
[1772891303429,0.0688345,67914.0,67904.0,1e-08]
[1772891304532,0.0688345,67914.0,67902.0,0.21081399]
[1772891304938,0.0698345,67914.0,67902.0,0.21081399]
[1772891305712,0.1424581,67913.0,67902.0,0.21081399]
[1772891306025,0.1424581,67913.0,67900.0,0.0004]
[1772891306026,0.0703145,67912.0,67900.0,0.0004]
[1772891306666,0.0703145,67912.0,67904.0,0.0002]
[1772891307839,0.07362577,67911.0,67900.0,0.0004]
[1772891313023,0.07252823,67911.0,67900.0,0.0004]
[1772891313253,0.07237307,67911.0,67900.0,0.0004]
[1772891313849,0.07237307,67911.0,67900.0,0.0006]
[1772891316383,0.1477,67918.0,67900.0,0.07423769]
[1772891316555,0.0736161,67920.0,67902.0,0.02917528]
[1772891316767,0.0736161,67920.0,67905.0,0.07326007]
[1772891316964,0.0736161,67920.0,67908.0,0.02917528]
[1772891317173,0.0736161,67920.0,67910.0,0.02917528]
[1772891317658,0.07376666,67921.0,67911.0,0.02917528]
[1772891319223,0.07384353,67921.0,67911.0,0.02917528]
[1772891320734,0.07406354,67921.0,67911.0,0.02917528]
[1772891323936,0.07361601,67921.0,67913.0,0.07326007]
[1772891324137,0.07509601,67921.0,67914.0,0.02917528]
[1772891324922,0.07361601,67921.0,67914.0,0.02917528]
[1772891326069,0.00148,67922.0,67914.0,0.02917528]
[1772891326291,0.00148,67922.0,67914.0,0.02925215]
[1772891326466,0.07360843,67927.0,67914.0,0.02925215]
[1772891326633,0.00148,67922.0,67914.0,0.02925215]
[1772891327221,0.07360843,67927.0,67914.0,0.02925215]
[1772891327479,0.00148,67926.0,67914.0,0.02925215]
[1772891327629,0.14,67924.0,67914.0,0.02925215]
[1772891327826,0.00148,67923.0,67914.0,0.02925215]
[1772891328382,0.00022001,67921.0,67914.0,0.02925215]
[1772891330370,0.07361601,67920.0,67914.0,0.02925215]
[1772891331090,0.07361601,67920.0,67914.0,7.687e-05]
[1772891331289,0.07361601,67920.0,67910.0,0.07362629]
[1772891334167,0.07361601,67920.0,67911.0,0.02917528]
[1772891334665,0.07383602,67920.0,67911.0,0.10280022]
[1772891336549,0.07383602,67920.0,67911.0,0.07362494]
[1772891336754,0.07383602,67920.0,67911.0,0.02917528]
[1772891342034,0.07383602,67920.0,67912.0,0.07362469]
[1772891342236,0.07383602,67920.0,67912.0,0.10279997]
[1772891344452,0.07767191,67919.0,67904.0,0.0003271]
[1772891344946,0.00148,67918.0,67904.0,0.0003271]
[1772891346240,0.07361927,67917.0,67904.0,0.0003271]
[1772891346916,0.07369616,67917.0,67904.0,0.0003271]
[1772891350368,0.07369616,67917.0,67904.0,0.02950238]
[1772891351745,0.00148,67916.0,67904.0,0.02950238]
[1772891354382,0.00148,67915.0,67904.0,0.02950238]
[1772891354683,0.00148,67914.0,67904.0,0.02950238]
[1772891365214,0.0736236,67913.0,67904.0,0.02950238]
[1772891367154,0.0736236,67913.0,67904.0,0.02937528]
[1772891370150,0.0736236,67913.0,67897.0,0.0002]
[1772891370321,0.0736236,67913.0,67898.0,0.07383886]
[1772891370526,0.0736236,67913.0,67899.0,0.10589578]
[1772891370672,0.0736236,67913.0,67898.0,0.07383886]
[1772891370868,0.0736236,67913.0,67901.0,0.0767205]
[1772891371096,0.0736236,67913.0,67903.0,0.02917528]
[1772891371623,0.0751036,67915.0,67903.0,0.02917528]
[1772891371624,0.07362077,67916.0,67906.0,0.02917528]
[1772891371821,0.07362077,67916.0,67908.0,0.02917528]
[1772891372325,7.689e-05,67917.0,67908.0,0.02917528]
[1772891372542,7.689e-05,67917.0,67909.0,0.00148]
[1772891372844,7.689e-05,67917.0,67909.0,0.03065528]
[1772891373616,0.0002969,67917.0,67909.0,0.03065528]
[1772891377815,0.07362035,67916.0,67909.0,0.03065528]
[1772891379346,0.07377035,67916.0,67909.0,0.03065528]
[1772891384949,0.07361818,67918.0,67911.0,0.02917528]
[1772891385210,0.07361818,67918.0,67912.0,0.02917528]
[1772891390684,0.07361818,67918.0,67913.0,0.02917528]
[1772891391120,0.07383819,67918.0,67913.0,0.02917528]
[1772891393690,0.00022001,67918.0,67913.0,0.02917528]
[1772891393915,0.07361541,67921.0,67915.0,0.02917528]
[1772891394129,0.07361541,67921.0,67915.0,0.03065528]
[1772891396978,0.07361541,67921.0,67915.0,0.00148]
[1772891399177,0.07383542,67921.0,67915.0,0.00148]
[1772891404904,0.07383542,67921.0,67915.0,0.03065528]
[1772891406648,0.07383542,67921.0,67915.0,0.10427657]
[1772891413235,0.07383542,67921.0,67916.0,0.02917528]
[1772891414443,0.07383542,67921.0,67914.0,0.00148]
[1772891414651,0.07383542,67921.0,67914.0,0.07510217]
[1772891417052,0.07383542,67921.0,67915.0,0.00148]
[1772891418535,0.07383542,67921.0,67912.0,0.0002]
[1772891418768,0.07383542,67921.0,67913.0,0.00148]
[1772891418973,0.07383542,67921.0,67915.0,0.0002]
[1772891421174,0.07383542,67921.0,67905.0,0.07383173]
[1772891421175,0.07654782,67920.0,67905.0,0.07383173]
[1772891421379,0.07654782,67920.0,67906.0,0.07511119]
[1772891421987,0.07654782,67920.0,67906.0,0.07363119]
[1772891422199,0.07654782,67920.0,67907.0,0.00148]
[1772891422564,0.07654782,67918.0,67906.0,0.07511119]
[1772891423006,0.07654782,67918.0,67906.0,0.07363119]
[1772891423211,0.07654782,67918.0,67907.0,0.00148]
[1772891424019,0.07654782,67918.0,67906.0,0.07363119]
[1772891424223,0.07654782,67918.0,67907.0,0.00148]
[1772891424623,0.07361927,67917.0,67907.0,0.00148]
[1772891425027,0.07361927,67917.0,67906.0,0.07363119]
[1772891425241,0.07361927,67917.0,67907.0,0.03065528]
[1772891426470,0.07361927,67917.0,67907.0,0.03085528]
[1772891426608,0.0736171,67919.0,67908.0,0.07362902]
[1772891426808,0.0736171,67919.0,67909.0,0.02917528]
[1772891431575,0.0736171,67919.0,67909.0,0.10280322]
[1772891433927,0.0736171,67919.0,67909.0,0.10300322]
[1772891434825,0.0736171,67919.0,67910.0,0.02917528]
[1772891435187,0.07383531,67921.0,67911.0,0.02917528]
[1772891435390,0.07383531,67921.0,67912.0,0.02917528]
[1772891435612,0.07383531,67921.0,67914.0,0.02917528]
[1772891439297,0.07383531,67921.0,67913.0,0.07510317]
[1772891444275,0.07383531,67921.0,67913.0,0.10427845]
[1772891445346,0.07383531,67921.0,67914.0,0.02917528]
[1772891446976,0.00022001,67924.0,67916.0,0.02917528]
[1772891447148,0.00022001,67924.0,67916.0,0.02900421]
[1772891447472,0.07383231,67924.0,67916.0,0.02900421]
[1772891447871,0.07383231,67924.0,67916.0,0.02883314]
[1772891454034,0.07383231,67924.0,67917.0,0.07361927]
[1772891454880,0.00062001,67925.0,67918.0,0.02900421]
[1772891455031,0.07382861,67927.0,67920.0,0.02900421]
[1772891456047,0.07382861,67927.0,67921.0,0.02900421]
[1772891456659,0.07382861,67927.0,67919.0,0.00148]
[1772891458630,0.07382861,67927.0,67920.0,0.00148]
[1772891466031,0.07382861,67927.0,67920.0,0.07509559]
[1772891466334,0.00022001,67927.0,67921.0,0.02900421]
[1772891466681,0.07382785,67928.0,67921.0,0.02900421]
[1772891467308,0.07382785,67928.0,67923.0,0.02900421]
[1772891469212,0.07382785,67928.0,67921.0,0.07361453]
[1772891481062,0.00022001,67932.0,67921.0,0.07361453]
[1772891481063,0.00022001,67932.0,67922.0,0.02900421]
[1772891481306,0.07382318,67932.0,67923.0,0.02900421]
[1772891482605,0.07382318,67932.0,67923.0,0.02883317]
[1772891483815,0.07382318,67932.0,67925.0,0.02891869]
[1772891483816,0.00022001,67932.0,67925.0,0.02891869]
[1772891484633,0.07382303,67932.0,67925.0,0.02891869]
[1772891485766,0.0002719,67933.0,67927.0,0.02891869]
[1772891488277,0.0002719,67933.0,67928.0,0.07360734]
[1772891488774,0.0002719,67933.0,67928.0,0.07343631]
[1772891489364,0.0002719,67933.0,67928.0,0.0732653]
[1772891489606,0.0002719,67933.0,67928.0,0.10201297]
[1772891489838,0.0002719,67933.0,67929.0,0.02874767]
[1772891490478,0.0002719,67933.0,67928.0,0.0732653]
[1772891490930,0.0003429,67933.0,67928.0,0.0732653]
[1772891491134,0.0003429,67933.0,67928.0,0.10201297]
[1772891491944,0.0003429,67933.0,67929.0,0.02874767]
[1772891492920,0.00023813,67933.0,67929.0,0.02874767]
[1772891493116,0.00045814,67933.0,67929.0,0.10235377]
[1772891493373,0.00045814,67933.0,67929.0,0.07331224]
[1772891497368,0.00045814,67933.0,67927.0,0.1023561]
[1772891502411,0.00045814,67933.0,67927.0,0.1025561]
[1772891507119,0.00045814,67933.0,67927.0,0.07380843]
[1772891507303,0.00045814,67933.0,67928.0,0.02874767]
[1772891508751,0.00045814,67933.0,67929.0,0.00148]
[1772891508950,0.00045814,67933.0,67930.0,0.02874767]
[1772891510730,0.00045814,67933.0,67929.0,0.07508581]
[1772891515927,0.00045814,67933.0,67930.0,0.02874767]
[1772891516650,0.00045814,67933.0,67929.0,0.07508581]
[1772891517225,0.00045814,67933.0,67930.0,0.02874767]
[1772891519033,0.0001219,67939.0,67932.0,0.02874767]
[1772891519235,0.07371748,67939.0,67934.0,0.02874767]
[1772891519607,0.07371748,67939.0,67933.0,0.07360193]
[1772891520831,0.07381654,67938.0,67933.0,0.07360193]
[1772891522552,0.00022001,67938.0,67933.0,0.07360193]
[1772891525606,0.07381657,67938.0,67933.0,0.07360193]
[1772891527261,0.07381657,67938.0,67933.0,0.1023496]
[1772891534208,0.00022001,67938.0,67933.0,0.1023496]
[1772891534689,0.00022001,67938.0,67934.0,0.02874767]
[1772891535802,0.00022001,67938.0,67933.0,0.07360193]
[1772891535803,0.00575,67943.0,67935.0,0.03022767]
[1772891535942,0.00579731,67943.0,67936.0,0.03486962]
[1772891536142,0.07938848,67943.0,67937.0,0.02123521]
[1772891537556,0.07938848,67943.0,67936.0,0.03486962]
[1772891537975,0.07938848,67943.0,67936.0,0.00148]
[1772891538184,0.07938848,67943.0,67932.0,0.07360215]
[1772891538540,0.07938848,67943.0,67933.0,0.00148]
[1772891540144,0.07938848,67943.0,67934.0,0.07360084]
[1772891541140,0.07960849,67943.0,67934.0,0.07360084]
[1772891557998,0.07960849,67943.0,67934.0,0.07380084]
[1772891563824,0.0932053,67943.0,67934.0,0.07380084]
[1772891564386,0.0932053,67943.0,67935.0,0.00148]
[1772891564737,0.0932053,67943.0,67936.0,0.00148]
[1772891565184,0.0932053,67943.0,67934.0,0.07380084]
[1772891565370,0.0932053,67943.0,67936.0,0.00148]
[1772891565581,0.0932053,67943.0,67934.0,0.07380084]
[1772891565786,0.0932053,67943.0,67936.0,0.07359868]
[1772891566398,0.0932053,67943.0,67936.0,0.07507868]
[1772891567136,0.0932053,67943.0,67936.0,0.07359868]
[1772891567285,0.0932053,67943.0,67936.0,0.07507868]
[1772891567692,0.0932053,67943.0,67936.0,0.07359868]
[1772891567954,0.0932053,67943.0,67936.0,0.07507868]
[1772891568744,0.0932053,67943.0,67936.0,0.07359868]
[1772891568949,0.0932053,67943.0,67936.0,0.07507868]
[1772891569730,0.0932053,67943.0,67936.0,0.07359868]
[1772891569931,0.0932053,67943.0,67936.0,0.07507868]
[1772891570623,0.0932053,67943.0,67935.0,0.07359967]
[1772891570831,0.0932053,67943.0,67936.0,0.07507843]
[1772891571383,0.07960849,67943.0,67936.0,0.07507843]
[1772891571977,0.07960849,67943.0,67934.0,0.0002]
[1772891572184,0.07960849,67943.0,67936.0,0.00148]
[1772891572908,0.07960849,67943.0,67934.0,0.0002]
[1772891573071,0.07960849,67943.0,67935.0,0.00148]
[1772891573869,0.07960849,67943.0,67934.0,0.0002]
[1772891574112,0.07960849,67943.0,67935.0,0.00148]
[1772891574911,0.07960849,67943.0,67934.0,0.0002]
[1772891575112,0.07960849,67943.0,67935.0,0.00148]
[1772891576258,0.07960849,67943.0,67936.0,0.07359868]
[1772891579244,0.07960849,67943.0,67936.0,0.07379868]
[1772891579671,0.07960855,67943.0,67936.0,0.07379868]
[1772891580828,0.0666705,67944.0,67937.0,0.01998017]
[1772891581413,0.0666705,67944.0,67938.0,0.07359651]
[1772891582035,0.0666705,67944.0,67938.0,0.09357668]
[1772891583157,0.06519462,67949.0,67938.0,0.07359651]
[1772891583362,0.07107125,67954.0,67939.0,0.02992027]
[1772891583529,0.07107125,67954.0,67938.0,0.07359651]
[1772891583734,0.07107125,67954.0,67942.0,0.01998017]
[1772891583905,0.07107125,67954.0,67944.0,0.01998017]
[1772891584119,0.07107125,67954.0,67944.0,0.02992027]
[1772891584328,0.07107125,67954.0,67945.0,0.01998017]
[1772891585985,0.00022001,67954.0,67946.0,0.07358784]
[1772891586183,0.00022001,67954.0,67947.0,0.01998017]
[1772891588159,0.07379931,67954.0,67948.0,0.07358568]
[1772891593427,0.00022001,67954.0,67947.0,0.01998017]
[1772891594590,0.07045706,67956.0,67947.0,0.01998017]
[1772891594790,0.07045706,67956.0,67948.0,0.01951133]
[1772891594975,0.07045706,67956.0,67950.0,0.01951133]
[1772891595442,0.07357498,67958.0,67951.0,0.07358243]
[1772891596480,0.00022001,67954.0,67951.0,0.07358243]
[1772891596729,0.00022001,67954.0,67952.0,0.01951133]
[1772891597097,0.00062182,67954.0,67952.0,0.01951133]
[1772891598053,0.00062182,67954.0,67952.0,0.09309256]
[1772891599851,0.07357498,67958.0,67953.0,0.01951133]
[1772891600066,0.07361513,67958.0,67954.0,0.01951133]
[1772891601420,4.015e-05,67958.0,67954.0,0.01951133]
[1772891601627,0.07357582,67959.0,67954.0,0.01951133]
[1772891602028,0.07357582,67959.0,67955.0,0.01951133]
[1772891602325,0.0001219,67966.0,67955.0,0.02099133]
[1772891602534,0.07368864,67966.0,67955.0,0.02099133]
[1772891602691,0.0001219,67966.0,67955.0,0.02099133]
[1772891602948,0.07368812,67966.0,67956.0,0.01951133]
[1772891603560,0.0001219,67966.0,67957.0,0.09308726]
[1772891604574,0.00034191,67966.0,67957.0,0.09308726]
[1772891608828,0.07356727,67965.0,67957.0,0.09308726]
[1772891608963,0.07356727,67965.0,67957.0,0.07357593]
[1772891613423,0.07378728,67965.0,67957.0,0.09308726]
[1772891616015,0.07378728,67965.0,67957.0,0.07357593]
[1772891621698,0.01118156,67964.0,67943.0,1e-08]
[1772891621931,0.01118156,67964.0,67936.0,0.01954109]
[1772891621932,0.01118156,67964.0,67932.0,0.00148]
[1772891621933,0.0472641,67953.0,67932.0,0.00148]
[1772891622136,0.01113241,67950.0,67932.0,0.00148]
[1772891622318,0.01113241,67946.0,67932.0,0.00148]
[1772891622525,0.04033129,67946.0,67932.0,0.00148]
[1772891622662,0.03885129,67945.0,67932.0,0.00148]
[1772891623503,0.07359001,67944.0,67932.0,0.00148]
[1772891624290,0.01107555,67941.0,67930.0,0.06859419]
[1772891624494,0.03879443,67940.0,67930.0,0.06859419]
[1772891624827,0.02771888,67940.0,67930.0,0.06859419]
[1772891625905,0.07359543,67939.0,67930.0,0.06859419]
[1772891626111,0.07359543,67939.0,67930.0,0.00148]
[1772891626691,0.07359543,67939.0,67929.0,0.0003219]
[1772891627265,0.07359543,67939.0,67929.0,0.07392811]
[1772891627862,0.07359543,67939.0,67929.0,0.0003219]
[1772891629040,0.07359543,67939.0,67930.0,0.0002]
[1772891629934,0.07359543,67939.0,67923.0,0.0002]
[1772891630144,0.01075273,67937.0,67923.0,0.0002]
[1772891630349,0.07360193,67933.0,67923.0,0.0002]
[1772891630753,0.07360193,67933.0,67923.0,0.00168]
[1772891631159,0.07360193,67933.0,67923.0,0.0002]
[1772891631369,0.03842969,67932.0,67923.0,0.00168]
[1772891631784,0.03842969,67932.0,67923.0,0.0002]
[1772891631994,0.03842969,67932.0,67923.0,0.00168]
[1772891632354,0.07360409,67931.0,67923.0,0.00168]
[1772891632556,0.07360409,67931.0,67923.0,0.00024015]
[1772891632766,0.07360409,67931.0,67923.0,0.00172015]
[1772891633216,0.07360409,67931.0,67918.0,0.00148]
[1772891633429,0.03832572,67930.0,67919.0,0.00148]
[1772891633877,0.03832572,67930.0,67918.0,4.731e-05]
[1772891634124,0.03832572,67930.0,67919.0,0.00148]
[1772891634400,0.03832572,67930.0,67918.0,4.731e-05]
[1772891634631,0.07360626,67929.0,67919.0,0.00148]
[1772891635051,0.07360626,67929.0,67920.0,0.00148]
[1772891635386,0.07360626,67929.0,67918.0,4.731e-05]
[1772891635693,0.07360626,67929.0,67919.0,0.00148]
[1772891635871,0.07360626,67929.0,67919.0,0.02069919]
[1772891636110,0.07360626,67929.0,67920.0,0.00148]
[1772891636316,0.07360626,67929.0,67921.0,0.01921919]
[1772891637000,0.07360409,67931.0,67921.0,0.09283381]
[1772891637384,0.07360409,67931.0,67921.0,0.01921919]
[1772891640257,0.07360409,67931.0,67921.0,0.07361465]
[1772891640458,0.07360409,67931.0,67921.0,0.09308667]
[1772891642172,0.07360409,67931.0,67922.0,0.00148]
[1772891646795,0.07360409,67931.0,67923.0,0.00148]
[1772891650117,0.07360409,67931.0,67923.0,0.00168]
[1772891651815,0.0002214,67933.0,67923.0,0.0752922]
[1772891652113,0.07359667,67938.0,67925.0,0.07361059]
[1772891652334,0.07359667,67938.0,67926.0,0.01851444]
[1772891654210,0.07359667,67938.0,67927.0,0.01851444]
[1772891656545,0.00022001,67934.0,67928.0,0.07360734]
[1772891656851,0.00022001,67934.0,67929.0,0.01898823]
[1772891658254,0.07382148,67934.0,67929.0,0.01898823]
[1772891660526,0.00022001,67934.0,67930.0,0.01750823]
[1772891661190,0.07382192,67934.0,67930.0,0.01750823]
[1772891662611,0.07382192,67934.0,67929.0,0.01898823]
[1772891666387,0.07382192,67934.0,67929.0,0.00148]
[1772891670067,0.07382192,67934.0,67929.0,0.00168]
[1772891671792,0.10730249,67934.0,67923.0,0.0002]
[1772891671982,0.10730249,67934.0,67923.0,0.00168]
[1772891672387,0.10730249,67934.0,67923.0,0.0002]
[1772891672588,0.10730249,67934.0,67923.0,0.07529261]
[1772891672922,0.10730249,67934.0,67923.0,0.07381261]
[1772891673122,0.10730249,67934.0,67923.0,0.07529261]
[1772891673438,0.10730249,67934.0,67923.0,0.07381261]
[1772891673641,0.10730249,67934.0,67923.0,0.07529261]
[1772891674058,0.10730249,67934.0,67924.0,0.00148]
[1772891674536,0.10730249,67934.0,67923.0,0.00168]
[1772891674996,0.10730249,67934.0,67923.0,0.0002]
[1772891675212,0.10730249,67934.0,67923.0,0.00168]
[1772891675405,0.10730249,67934.0,67923.0,0.0002]
[1772891675554,0.10730249,67934.0,67923.0,0.00168]
[1772891675759,0.07382192,67934.0,67924.0,0.01750823]
[1772891675945,0.07382192,67934.0,67927.0,0.01750823]
[1772891677599,0.07381563,67939.0,67930.0,0.01750823]
[1772891677951,0.07381563,67939.0,67932.0,0.01769157]
[1772891678580,0.07381544,67941.0,67932.0,0.01769157]
[1772891678581,0.07381334,67941.0,67933.0,0.01769157]
[1772891679005,0.07381334,67941.0,67935.0,0.01769157]
[1772891680120,0.07381334,67941.0,67936.0,0.01769157]
[1772891681063,0.00022001,67941.0,67936.0,0.01769157]
[1772891681263,0.00022001,67941.0,67935.0,0.07359952]
[1772891681264,0.07380837,67946.0,67938.0,0.01769157]
[1772891682158,0.07380837,67946.0,67939.0,0.07359543]
[1772891682159,0.00022001,67946.0,67939.0,0.07359543]
[1772891682369,0.00022001,67946.0,67940.0,0.01769157]
[1772891682580,0.07358741,67947.0,67940.0,0.01917157]
[1772891683654,0.00022001,67946.0,67940.0,0.01917157]
[1772891684122,0.00022001,67946.0,67940.0,0.00148]
[1772891684447,0.07358893,67945.0,67940.0,0.00148]
[1772891686204,0.07358893,67945.0,67938.0,8.52e-05]
[1772891686425,0.07358893,67945.0,67939.0,0.00148]
[1772891687696,0.07358893,67945.0,67938.0,8.52e-05]
[1772891687898,0.07358893,67945.0,67939.0,0.00148]
[1772891688722,0.07358893,67945.0,67938.0,8.52e-05]
[1772891688893,0.07358893,67945.0,67939.0,0.00148]
[1772891689247,0.07358893,67945.0,67938.0,8.52e-05]
[1772891689438,0.07358893,67945.0,67939.0,0.00148]
[1772891690346,0.07380894,67945.0,67939.0,0.00148]
[1772891691490,0.07380894,67945.0,67938.0,0.0015652]
[1772891691683,0.07380894,67945.0,67935.0,0.07359976]
[1772891691884,0.10576003,67945.0,67935.0,0.00152731]
[1772891692083,0.0233667,67944.0,67932.0,0.07508281]
[1772891692317,0.00854782,67943.0,67932.0,0.07508281]
[1772891692689,0.07359218,67942.0,67930.0,0.09129639]
[1772891692903,0.07359218,67942.0,67933.0,0.00148]
[1772891695441,0.07359218,67942.0,67934.0,0.00148]
[1772891700905,0.07359218,67942.0,67933.0,0.00148]
[1772891701127,0.07359218,67942.0,67930.0,0.01769157]
[1772891701344,0.07359218,67942.0,67931.0,0.00148]
[1772891701574,0.07359218,67942.0,67930.0,0.01769157]
[1772891701763,0.07359218,67942.0,67931.0,0.00148]
[1772891702604,0.07359218,67942.0,67928.0,0.0001767]
[1772891702733,0.04729296,67940.0,67928.0,0.0001767]
[1772891702962,0.07507218,67942.0,67928.0,0.0001767]
[1772891703183,0.00815895,67938.0,67928.0,0.0001767]
[1772891703405,0.03185248,67938.0,67928.0,0.0001767]
[1772891704968,0.07359759,67937.0,67930.0,0.0002]
[1772891705791,0.07359759,67937.0,67928.0,0.0001767]
[1772891706110,0.03178422,67936.0,67926.0,0.0002]
[1772891706316,0.00148,67936.0,67922.0,0.0002]
[1772891706471,0.00155683,67936.0,67921.0,0.0002]
[1772891706674,0.00805683,67934.0,67921.0,0.0002]
[1772891706863,0.08165984,67932.0,67921.0,0.0002]
[1772891708884,0.07360626,67929.0,67921.0,0.0002]
[1772891711242,0.07360301,67932.0,67921.0,0.0002]
[1772891712890,0.21360301,67932.0,67921.0,0.0002]
[1772891713668,0.21360301,67932.0,67922.0,0.01744543]
[1772891718039,0.21360301,67932.0,67922.0,0.01764543]
[1772891719326,0.21360301,67932.0,67923.0,0.02444389]
[1772891719529,0.07360214,67933.0,67926.0,0.01744543]
[1772891719732,0.07360214,67933.0,67928.0,0.01744543]
[1772891721796,0.07359979,67935.0,67928.0,0.01744543]
[1772891726265,0.07359979,67935.0,67928.0,0.01727459]
[1772891726446,4.787e-05,67934.0,67928.0,0.01727459]
[1772891726644,4.787e-05,67934.0,67925.0,0.07361059]